[Event "GER-ch Youth U14 2020"]
[Site "Willingen"]
[Date "2020.10.20"]
[Round "1.2"]
[White "Klühs, Gustaf"]
[Black "Costa, Leonardo"]
[Result "0-1"]
[ECO "E06"]
[WhiteElo "1827"]
[BlackElo "2165"]
[Annotator "RC"]
[PlyCount "106"]
[EventDate "2020.10.20"]
[EventType "swiss"]
[EventRounds "7"]
[EventCountry "GER"]
[SourceTitle "playchess.com"]
[Source "ChessBase"]
[SourceQuality "1"]
[TimeControl "40/5400+30:1800+30"]

1. d4 {[%emt 0:00:00]} d5 {[%emt 0:00:00]} 2. c4 {[%emt 0:00:00]} e6 {[%emt 0:00:00]} 3. Nf3 {[%emt 0:00:38]} Nf6 {[%emt 0:00:00]} 4. g3 {[%emt 0:01:47]} Be7 {[%emt 0:00:20]} 5. Bg2 {[%emt 0:00:25]} O-O {[%emt 0:00:10]} 6. O-O {[%emt 0:00:07]} c6 {[%emt 0:00:03]} 7. Nbd2 {[%emt 0:00:40]} b6 {[%emt 0:01:18]} 8. Qc2 {[%emt 0:03:27]} Bb7 {[%emt 0:00:17]} 9. b3 {[%emt 0:05:33]} Na6 {[%emt 0:05:39]} 10. a3 {[%emt 0:05:14]} c5 {[%emt 0:13:42]} 11. Bb2 {[%emt 0:12:00]} Rc8 {[%emt 0:08:54]} 12. dxc5 {[%emt 0:12:21]} Nxc5 {[%emt 0:00:37]} 13. Rfd1 {[%emt 0:23:59]} Qe8 {[%emt 0:14:13]} 14. b4 {[%emt 0:07:23]} Na4 {[%emt 0:05:28]} 15. Ne5 {[%emt 0:09:32]} Nxb2 {[%emt 0:02:00]} 16. Qxb2 {[%emt 0:00:11]} Qa4 {[%emt 0:00:34]} 17. Rdc1 {[%emt 0:10:53]} a6 {[%emt 0:03:36]} 18. Qc2 {[%emt 0:01:45]} Qxc2 {[%emt 0:01:00]} 19. Rxc2 {[%emt 0:00:06]} Rfd8 {[%emt 0:01:18]} 20. Rac1 {[%emt 0:00:37]} Ne4 {[%emt 0:04:05]} 21. Nxe4 {[%emt 0:00:32]} dxe4 {[%emt 0:00:05]} 22. Ng4 {[%emt 0:00:14]} f5 {[%emt 0:07:49]} 23. Ne3 {[%emt 0:00:36]} Bg5 {[%emt 0:03:13]} 24. h4 {[%emt 0:00:30]} Bxe3 {[%emt 0:00:34]} 25. fxe3 {[%emt 0:00:06]} Rc7 {[%emt 0:01:37]} 26. a4 {[%emt 0:02:01]} Rdc8 {[%emt 0:02:48]} 27. c5 {[%emt 0:01:02]} a5 {[%emt 0:01:35]} 28. bxa5 {[%emt 0:00:38]} bxa5 {[%emt 0:04:45]} 29. Kf2 {[%emt 0:00:17]} Bd5 {[%emt 0:01:14]} 30. Rc3 {[%emt 0:00:15]} Rb8 {[%emt 0:02:02]} 31. h5 {[%emt 0:00:56]} Rb4 {[%emt 0:01:01]} 32. Ra3 {[%emt 0:00:45]} Kf7 {[%emt 0:02:14]} 33. Bh3 {[%emt 0:00:11]} g6 {[%emt 0:00:38]} 34. hxg6+ {[%emt 0:00:09]} hxg6 {[%emt 0:00:05]} 35. g4 {[%emt 0:00:26]} Kf6 {[%emt 0:00:37]} 36. Kg3 {[%emt 0:01:04]} Kg5 {[%emt 0:01:04]} 37. Rc2 {[%emt 0:01:12]} Rc4 {[%emt 0:02:00]} 38. Rac3 {[%emt 0:00:19]} Rxa4 {[%emt 0:00:10]} 39. Rc1 {[%emt 0:00:53]} Rb4 {[%emt 0:00:48]} 40. gxf5 {[%emt 0:00:12]} gxf5 {[%emt 0:00:30]} 41. Ra1 {[%emt 0:30:54]} a4 {[%emt 0:30:28]} 42. Bg2 {[%emt 0:00:00]} Bb3 {[%emt 0:00:00]} 43. Kf2 {[%emt 0:00:00]} Rc6 {[%emt 0:00:00]} 44. Ke1 {[%emt 0:00:00]} Rb5 {[%emt 0:00:00]} 45. Rac1 {[%emt 0:00:00]} Kf6 {[%emt 0:00:00]} 46. Kd2 {[%emt 0:00:00]} Ke7 {[%emt 0:00:00]} 47. Ke1 {[%emt 0:00:00]} Kd8 {[%emt 0:00:00]} 48. Kf2 {[%emt 0:00:00]} Kc7 {[%emt 0:00:00]} 49. Kg3 {[%emt 0:00:00]} Kb7 {[%emt 0:00:00]} 50. Kf4 {[%emt 0:00:00]} Ka6 {[%emt 0:00:00]} 51. Ke5 {[%emt 0:00:00]} Ka5 {[%emt 0:00:00]} 52. Kd4 {[%emt 0:00:00]} Kb4 {[%emt 0:00:00]} 53. Ra1 {[%emt 0:00:00]} Rcxc5 0-1

[Event "GER-ch Youth U14 2020"]
[Site "Willingen"]
[Date "2020.10.20"]
[Round "1.9"]
[White "Halabi, Ibrahim"]
[Black "Mimkes, Antal"]
[Result "1-0"]
[ECO "B01"]
[WhiteElo "1895"]
[BlackElo "1567"]
[Annotator "NA RC"]
[PlyCount "131"]
[EventDate "2020.10.20"]
[EventType "swiss"]
[EventRounds "7"]
[EventCountry "GER"]
[SourceTitle "playchess.com"]
[Source "ChessBase"]
[SourceQuality "1"]
[TimeControl "40/5400+30:1800+30"]

{[%evp 9,126,90,63,34,46,46,42,44,52,40,43,46,40,36,46,43,50,7,20,26,31,56,49,45,77,57,108,92,94,-171,-149,-151,-146,-132,-154,-173,32767,32767,-187,-157,32767,11,5,32767,32767,32767,123,32767,132,137,150,32767,191,32767,32767,32767,32767,32767,32767,184,32767,32767,254,154,200,180,32767,32767,266,256,272,32767,32767,32767,32767,32767,32767,32767,267,32767,32767,32767,32767,32767,32767,32767,32767,32767,32767,32767,32767,32767,32767,32767,32767,32767,32767,32767,1449,4752,2109,29979,29979,32767,29943,12845,29984,12846,29985,0,2662,29982,29986,29988,29990,29991,12849,29992,29995]} 1. e4 {[%emt 0:00:00]} d5 {[%emt 0:00:00]} 2. exd5 {[%emt 0:00:00]} c6 {[%emt 0:00:16]} 3. dxc6 {[%emt 0:03:59]} Nxc6 {[%emt 0:01:01]} 4. Nf3 {[%emt 0:00:37]} e5 {[%emt 0:00:42]} 5. Nc3 {[%emt 0:01:47]} Nf6 {[%emt 0:03:43]} 6. d3 {[%emt 0:01:46] B01: Scandinavian Defence.} Bc5 {[%emt 0:02:14]} 7. Be2 {[%emt 0:06:31]} O-O {[%emt 0:05:23]} 8. O-O {[%emt 0:06:16]} h6 {[%emt 0:05:32]} 9. Ne4 {[%emt 0:06:42]} Bb6 {[%emt 0:02:32]} 10. Nxf6+ {[%emt 0:05:31]} Qxf6 {[%emt 0:00:54]} 11. c3 {[%emt 0:13:50]} Bf5 {[%emt 0:03:35]} 12. Be3 {[%emt 0:02:46]} Bc7 {[%emt 0:03:17]} 13. Nd2 {[%emt 0:04:51] [#]} Rad8 $146 {[%emt 0:01:31]} ({Predecessor:} 13... Rfd8 14. Qc2 Qg6 15. Ne4 Ne7 16. Rad1 Nd5 17. Ng3 Be6 18. Bh5 Qh7 19. Ne4 b6 {½-½ (53) Leks,H (2165)-Bakalarz,M (2305) Wroclaw 2010}) 14. Qc2 {[%emt 0:02:12]} Qg6 {[%emt 0:05:31]} 15. Ne4 {[%emt 0:00:41]} h5 {[%emt 0:04:11]} 16. Kh1 {[%emt 0:05:03]} Be6 {[%emt 0:04:20]} 17. f4 {[%emt 0:05:10]} f5 {[%emt 0:04:15]} (17... b6 $14) 18. Ng5 {[%emt 0:01:40]} Bd5 {[%emt 0:02:27]} 19. Bf3 $2 {[%emt 0:04:28]} (19. h4 $16) 19... exf4 {[%emt 0:04:27]} 20. Bxd5+ {[%emt 0:02:39]} Rxd5 {[%emt 0:01:11]} 21. Qb3 {[%emt 0:00:15]} Rfd8 {[%emt 0:01:33]} 22. Qxb7 {[%emt 0:03:27]} fxe3 {[%emt 0:07:14]} 23. Qxc7 {[%emt 0:01:07]} e2 {[%emt 0:04:25]} ({Weaker is} 23... Rxd3 24. Qf4 $15) 24. Rfe1 {[%emt 0:03:18]} Rxd3 {[%emt 0:03:15] [#]} 25. Rxe2 {[%emt 0:02:44]} (25. Qf4 $1 $16) 25... Qxg5 {[%emt 0:08:07]} 26. Qxc6 {[%emt 0:00:46]} Qg4 {[%emt 0:01:12]} 27. Qe6+ {[%emt 0:01:13]} Kh8 {[%emt 0:02:26]} (27... Kh7 $14) 28. Rae1 {[%emt 0:02:59]} Rd2 {[%emt 0:03:18] [#]} 29. h3 $1 {[%emt 0:01:27]} Rxe2 {[%emt 0:02:57]} 30. Qxe2 {[%emt 0:01:18]} Qg5 {[%emt 0:00:58]} 31. Rd1 {[%emt 0:04:48]} Rf8 {[%emt 0:03:02]} 32. Qf3 {[%emt 0:01:19]} Rb8 {[%emt 0:02:33]} 33. b3 {[%emt 0:00:38]} Re8 {[%emt 0:01:35]} 34. Rf1 {[%emt 0:02:28]} Rf8 {[%emt 0:01:55]} 35. c4 {[%emt 0:00:30]} g6 {[%emt 0:02:26]} 36. Qf4 {[%emt 0:00:59]} (36. c5 $18) 36... Qf6 {[%emt 0:00:56]} 37. Rd1 {[%emt 0:00:27]} g5 {[%emt 0:01:59]} 38. Qd4 {[%emt 0:01:16]} g4 {[%emt 0:01:30]} (38... Qxd4 $142 39. Rxd4 Kg7) 39. Qxf6+ {[%emt 0:00:23]} Rxf6 {[%emt 0:00:06]} 40. hxg4 {[%emt 0:00:35]} hxg4 {[%emt 0:00:37]} 41. Rd8+ {[%emt 0:30:17]} Kg7 {[%emt 0:30:40]} 42. Rd7+ {[%emt 0:00:06]} Kg6 {[%emt 0:00:24]} 43. c5 {[%emt 0:00:00]} Kg5 $2 {[%emt 0:00:00]} (43... Re6 $1 $11 {and Black is okay.}) 44. g3 {[%emt 0:00:00]} Rc6 {[%emt 0:00:00]} 45. b4 {[%emt 0:00:00]} a5 {[%emt 0:00:00]} 46. a3 {[%emt 0:00:00]} axb4 {[%emt 0:00:00]} 47. axb4 {[%emt 0:00:00]} Ra6 {[%emt 0:00:00]} 48. Rd2 {[%emt 0:00:00]} Ra1+ {[%emt 0:00:00]} 49. Kg2 {[%emt 0:00:00]} Rb1 {[%emt 0:00:00]} 50. Rd4 {[%emt 0:00:00]} Rb2+ {[%emt 0:00:00]} 51. Kf1 {[%emt 0:00:00]} Rb1+ {[%emt 0:00:00]} 52. Ke2 {[%emt 0:00:00]} Rb2+ {[%emt 0:00:00]} 53. Kd3 {[%emt 0:00:00]} Rb3+ {[%emt 0:00:00]} 54. Kc2 {[%emt 0:00:00]} Rxg3 {[%emt 0:00:00]} 55. c6 {[%emt 0:00:00]} Rh3 {[%emt 0:00:00]} 56. c7 {[%emt 0:00:00]} Rh2+ {[%emt 0:00:00]} 57. Rd2 {[%emt 0:00:00]} Rh8 {[%emt 0:00:00]} 58. Rd8 {[%emt 0:00:00]} Rh2+ {[%emt 0:00:00]} 59. Rd2 $2 {[%emt 0:00:00]} (59. Kd3 {mates} Rh3+ 60. Kd4 Rh1 61. c8=Q Rd1+ 62. Ke3 Re1+ 63. Kf2 Re7 64. Rg8+ Kf4 65. Qd8) 59... Rh8 {[%emt 0:00:00]} 60. b5 {[%emt 0:00:00]} g3 {[%emt 0:00:00]} 61. b6 {[%emt 0:00:00]} Rc8 {[%emt 0:00:00]} 62. Rd8 {[%emt 0:00:00]} g2 {[%emt 0:00:00]} 63. Rxc8 {[%emt 0:00:00]} Kh4 {[%emt 0:00:00]} 64. Rh8+ {[%emt 0:00:00]} Kg3 {[%emt 0:00:00]} 65. Rg8+ {[%emt 0:00:00]} Kf2 {[%emt 0:00:00]} 66. c8=Q {[%emt 0:00:00]} 1-0

[Event "GER-ch Youth U14 2020"]
[Site "Willingen"]
[Date "2020.10.20"]
[Round "1.16"]
[White "Bock, Marlon"]
[Black "Hecht, Jonas Christian"]
[Result "0-1"]
[ECO "A03"]
[WhiteElo "1776"]
[BlackElo "1764"]
[Annotator "NA RC"]
[PlyCount "76"]
[EventDate "2020.10.20"]
[EventType "swiss"]
[EventRounds "7"]
[EventCountry "GER"]
[SourceTitle "playchess.com"]
[Source "ChessBase"]
[SourceQuality "1"]
[TimeControl "40/5400+30:1800+30"]

1. f4 {[%emt 0:00:00]} d5 {[%emt 0:01:05]} 2. Nf3 {[%emt 0:00:00]} c5 {[%emt 0:00:57]} 3. b3 {[%emt 0:01:43]} Nc6 {[%emt 0:01:32]} 4. Bb2 {[%emt 0:01:33]} Nf6 {[%emt 0:00:32]} 5. e3 {[%emt 0:01:12]} Bg4 {[%emt 0:06:01]} 6. Be2 {[%emt 0:02:17]} e6 {[%emt 0:01:47]} 7. O-O {[%emt 0:02:06]} Bd6 {[%emt 0:04:41]} 8. Ne5 {[%emt 0:05:22]} Bxe2 {[%emt 0:00:34]} 9. Qxe2 {[%emt 0:00:05]} Qc7 {[%emt 0:04:12]} 10. Nxc6 {[%emt 0:03:48]} Qxc6 {[%emt 0:00:42]} 11. d3 {[%emt 0:01:44]} O-O-O {[%emt 0:05:39]} 12. Nd2 {[%emt 0:03:15]} Qc7 {[%emt 0:12:39]} 13. Nf3 {[%emt 0:04:13]} Rhg8 {[%emt 0:08:45]} 14. Rfc1 {[%emt 0:07:31]} d4 {[%emt 0:05:09]} 15. exd4 {[%emt 0:17:31]} Bxf4 {[%emt 0:00:22]} 16. Rf1 {[%emt 0:01:13]} cxd4 {[%emt 0:02:42]} 17. Bxd4 {[%emt 0:10:26]} Bxh2+ {[%emt 0:00:22]} 18. Nxh2 {[%emt 0:03:55]} Rxd4 {[%emt 0:00:13]} 19. Qf2 {[%emt 0:02:41]} Rd5 {[%emt 0:02:54]} 20. Qxa7 {[%emt 0:05:31]} Rc5 {[%emt 0:02:51]} 21. c4 {[%emt 0:04:34]} Qd6 {[%emt 0:10:12]} 22. Nf3 {[%emt 0:02:32]} b6 {[%emt 0:07:32]} 23. b4 {[%emt 0:04:28]} Rc7 {[%emt 0:04:24]} 24. Qa6+ {[%emt 0:01:22]} Kd8 {[%emt 0:01:54]} 25. d4 {[%emt 0:04:16]} Qxb4 {[%emt 0:04:10]} 26. Rfc1 {[%emt 0:02:24]} Qd6 {[%emt 0:03:39]} 27. c5 {[%emt 0:01:47]} Qf4 {[%emt 0:00:58]} 28. Qxb6 {[%emt 0:01:11]} g5 {[%emt 0:02:20]} 29. Qb8+ {[%emt 0:04:07]} Ke7 {[%emt 0:01:00]} 30. Qb4 {[%emt 0:00:21]} Nd5 {[%emt 0:02:22]} 31. Qa3 {[%emt 0:01:05]} g4 {[%emt 0:01:31]} 32. c6+ {[%emt 0:00:20]} Kd8 {[%emt 0:00:37]} 33. Rab1 {[%emt 0:01:18]} gxf3 {[%emt 0:00:25]} 34. Rb8+ {[%emt 0:00:25]} Rc8 {[%emt 0:00:04]} 35. c7+ {[%emt 0:00:42]} Kd7 {[%emt 0:00:31]} 36. Qa4+ {[%emt 0:00:19]} Ke7 {[%emt 0:00:15]} 37. Rxc8 {[%emt 0:00:36]} Rxg2+ {[%emt 0:00:16]} 38. Kf1 {[%emt 0:00:13]} Qxc1+ {[%emt 0:00:02]} 0-1

[Event "GER-ch Youth U14 2020"]
[Site "Willingen"]
[Date "2020.10.20"]
[Round "1.17"]
[White "Bungarten, Jona"]
[Black "Meuer, David"]
[Result "1-0"]
[ECO "C07"]
[WhiteElo "1834"]
[BlackElo "1632"]
[Annotator "NA RC"]
[PlyCount "57"]
[EventDate "2020.10.20"]
[EventType "swiss"]
[EventRounds "7"]
[EventCountry "GER"]
[SourceTitle "playchess.com"]
[Source "ChessBase"]
[SourceQuality "1"]
[TimeControl "40/5400+30:1800+30"]

{[%evp 8,47,31,23,27,25,32767,32767,32767,32767,32767,32767,32767,32767,32767,0,0,0,7,32767,10,-18,0,-34,-21,-28,-12,-23,0,0,50,51,458,32767,1236,366,32767,989,32767,32767,29993,29991]} 1. e4 {[%emt 0:00:00]} e6 {[%emt 0:00:00]} 2. d4 {[%emt 0:00:00]} d5 {[%emt 0:00:00]} 3. Nd2 {[%emt 0:00:00]} c5 {[%emt 0:00:00]} 4. exd5 {[%emt 0:00:00]} Qxd5 {[%emt 0:00:00]} 5. Ngf3 {[%emt 0:00:34]} cxd4 {[%emt 0:03:13]} 6. Bc4 {[%emt 0:00:08]} Qd6 {[%emt 0:00:11]} 7. O-O {[%emt 0:00:59]} Nf6 {[%emt 0:00:22]} 8. Nb3 {[%emt 0:00:29]} Nc6 {[%emt 0:03:22]} 9. Nbxd4 {[%emt 0:02:02]} Nxd4 {[%emt 0:00:09]} 10. Nxd4 {[%emt 0:00:24]} a6 {[%emt 0:00:13]} 11. c3 {[%emt 0:02:20]} Qc7 {[%emt 0:03:05]} 12. Bb3 {[%emt 0:03:50]} Bd6 {[%emt 0:02:06]} 13. h3 {[%emt 0:01:45]} O-O {[%emt 0:04:11]} 14. Qf3 {[%emt 0:01:00] C07: French Tarrasch: 3...c5, 4 Ngf3 and 4 exd5 Qxd5.} b6 {[%emt 0:07:49] [#]} 15. Bg5 $146 {[%emt 0:05:25]} ({Predecessor:} 15. Qxa8 Bb7 16. Qxf8+ Bxf8 17. Bd1 e5 18. Nf5 Nd5 19. Bf3 Qd7 20. Rd1 Qe6 21. Ng3 Bc5 {0-1 (37) Dobrovolsky,L (2380)-Antonsen,M (2390) Tastrup 1992}) 15... Bb7 {[%emt 0:01:22]} 16. Qe2 {[%emt 0:03:05]} Ne4 {[%emt 0:19:34]} 17. Be3 {[%emt 0:04:05]} h6 {[%emt 0:10:36]} 18. Bc2 {[%emt 0:03:35]} Rfd8 {[%emt 0:02:27] [#]} 19. Bxh6 $1 {[%emt 0:15:17]} Nxf2 $2 {[%emt 0:06:13]} ({Better is} 19... Nxc3 $1 $14 20. Qg4 (20. bxc3 gxh6 21. Qd3 Kf8 $14) 20... f5) 20. Rxf2 {[%emt 0:01:13]} gxh6 {[%emt 0:02:03] [#]} (20... Bg3 $142 21. Rff1 Be5) 21. Qh5 $2 {[%emt 0:11:32]} (21. Nxe6 $1 {[%mdl 512]} Bh2+ {[#]} (21... fxe6 22. Qxe6+) 22. Kh1 $1 {[%mdl 512]}) 21... Bc5 {[%emt 0:13:46]} 22. Qxh6 {[%emt 0:04:27]} Bxd4 23. cxd4 {[%emt 0:01:21]} Rd7 {[%emt 0:07:16]} 24. Raf1 {[%emt 0:02:12]} f6 {[%emt 0:06:52]} 25. Rxf6 {[%emt 0:01:37]} Rg7 {[%emt 0:02:32]} 26. Bh7+ {[%emt 0:00:33]} Kh8 {[%emt 0:00:25]} 27. Rf8+ {[%emt 0:00:06]} Rxf8 {[%emt 0:00:16]} 28. Rxf8+ {[%emt 0:00:06]} Rg8 {[%emt 0:00:14]} 29. Rxg8# {[%emt 0:00:07]} 1-0

[Event "GER-ch Youth U14 2020"]
[Site "Willingen"]
[Date "2020.10.20"]
[Round "1.18"]
[White "Kageler, Anton Paul"]
[Black "Spriestersbach, Kai"]
[Result "1-0"]
[ECO "B28"]
[WhiteElo "1664"]
[BlackElo "1863"]
[Annotator "NA RC"]
[PlyCount "139"]
[EventDate "2020.10.20"]
[EventType "swiss"]
[EventRounds "7"]
[EventCountry "GER"]
[SourceTitle "playchess.com"]
[Source "ChessBase"]
[SourceQuality "1"]
[TimeControl "40/5400+30:1800+30"]

1. e4 {[%emt 0:00:00]} c5 {[%emt 0:00:00]} 2. Nf3 {[%emt 0:00:00]} a6 {[%emt 0:00:00]} 3. d4 {[%emt 0:00:04]} cxd4 {[%emt 0:00:00]} 4. Nxd4 {[%emt 0:00:15]} Nf6 {[%emt 0:00:00]} 5. Nc3 {[%emt 0:00:15]} e5 {[%emt 0:00:04]} 6. Nb3 {[%emt 0:05:09]} Bb4 {[%emt 0:00:36]} 7. Bg5 {[%emt 0:07:33]} h6 {[%emt 0:03:27]} 8. Bh4 {[%emt 0:07:08] B28: Sicilian: 2 Nf3 a6 (O'Kelly Variation).} d6 {[%emt 0:10:20] [#]} 9. Qd3 $146 {[%emt 0:05:44]} ({Predecessor:} 9. f3 Be6 10. Qd2 Nxe4 11. fxe4 Qxh4+ 12. g3 Bxc3 13. gxh4 Bxd2+ 14. Nxd2 Nc6 15. Bc4 Nd4 {0-1 (49) Amiridou,D (1555)-Papathanasiou,E (1534) Kallithea 2008}) 9... Nbd7 {[%emt 0:19:14]} 10. O-O-O {[%emt 0:09:34]} Bxc3 {[%emt 0:01:07]} 11. bxc3 {[%emt 0:07:23]} Qc7 {[%emt 0:02:10]} 12. f3 {[%emt 0:03:56]} O-O {[%emt 0:10:59]} (12... Ke7 $1 $11 {keeps the balance.}) 13. Qxd6 {[%emt 0:08:16]} Qxc3 {[%emt 0:07:47]} 14. Rd3 {[%emt 0:02:04]} Qc6 {[%emt 0:01:26]} (14... Qc4 $16) 15. Qxc6 {[%emt 0:00:36]} bxc6 {[%emt 0:00:06]} 16. Rc3 {[%emt 0:10:09]} Bb7 {[%emt 0:03:34]} (16... a5 $16 {is a better defense.} 17. Rxc6 a4) 17. Na5 {[%emt 0:01:24]} Rfb8 {[%emt 0:01:07]} 18. Nxc6 {[%emt 0:05:53]} Bxc6 {[%emt 0:00:09]} 19. Rxc6 {[%emt 0:00:11]} Rb4 {[%emt 0:06:27]} 20. Bc4 {[%emt 0:03:09]} a5 {[%emt 0:01:21]} 21. c3 {[%emt 0:02:49]} Rb6 {[%emt 0:01:58]} 22. Rxb6 {[%emt 0:01:58]} Nxb6 {[%emt 0:00:05]} 23. Bb5 {[%emt 0:00:28]} Rc8 {[%emt 0:01:05]} 24. Kc2 {[%emt 0:01:49]} Nc4 {[%emt 0:03:24]} 25. Bxc4 {[%emt 0:04:45]} Rxc4 {[%emt 0:00:07]} 26. Rd1 {[%emt 0:00:22]} Nh5 {[%emt 0:01:09]} 27. Bg3 {[%emt 0:04:00]} Nxg3 {[%emt 0:00:57]} 28. hxg3 {[%emt 0:00:02]} f5 {[%emt 0:02:03]} 29. exf5 {[%emt 0:01:02]} Kf7 {[%emt 0:00:47]} 30. Rd5 {[%emt 0:01:03]} Kf6 {[%emt 0:00:18]} 31. Rxa5 {[%emt 0:01:09]} Kxf5 {[%emt 0:00:06]} 32. Kd3 {[%emt 0:00:25]} Rc7 {[%emt 0:00:14]} 33. c4 {[%emt 0:03:52]} g5 {[%emt 0:00:36]} 34. c5 {[%emt 0:00:58]} Rd7+ {[%emt 0:02:53]} 35. Ke3 {[%emt 0:00:38]} Rd4 {[%emt 0:01:58]} 36. Ra6 {[%emt 0:02:04]} h5 {[%emt 0:00:06]} 37. Rd6 {[%emt 0:00:56]} Rc4 {[%emt 0:00:36]} 38. c6 {[%emt 0:00:34]} Rc3+ {[%emt 0:04:03]} 39. Kd2 {[%emt 0:00:35]} Rc5 {[%emt 0:00:13]} 40. Kd3 {[%emt 0:00:53]} h4 {[%emt 0:00:22]} 41. gxh4 {[%emt 0:30:36]} gxh4 {[%emt 0:30:07]} 42. a4 {[%emt 0:00:00]} Kf4 $2 {[%emt 0:00:00]} (42... Rc1 {might work better.}) 43. Rg6 {[%emt 0:00:00]} Kf5 {[%emt 0:00:00]} 44. Rg4 {[%emt 0:00:00]} Rxc6 {[%emt 0:00:00]} 45. Rxh4 {[%emt 0:00:00]} Rc1 {[%emt 0:00:00]} 46. Re4 {[%emt 0:00:00]} Ra1 {[%emt 0:00:00]} 47. g4+ {[%emt 0:00:00]} Kf6 {[%emt 0:00:00]} 48. Ke3 {[%emt 0:00:00]} Ra3+ {[%emt 0:00:00]} 49. Kf2 {[%emt 0:00:00]} Ra2+ {[%emt 0:00:00]} 50. Kg3 {[%emt 0:00:00]} Ra3 {[%emt 0:00:00]} 51. g5+ {[%emt 0:00:00]} Kf5 {[%emt 0:00:00]} 52. Kg2 {[%emt 0:00:00]} Ra2+ {[%emt 0:00:00]} 53. Kg3 {[%emt 0:00:00]} Rb2 {[%emt 0:00:00]} 54. g6 {[%emt 0:00:00]} Kxg6 {[%emt 0:00:00]} 55. Rxe5 {[%emt 0:00:00]} Kf6 {[%emt 0:00:00]} 56. Rb5 {[%emt 0:00:00]} Rc2 {[%emt 0:00:00]} 57. a5 {[%emt 0:00:00]} Rc4 {[%emt 0:00:00]} 58. f4 {[%emt 0:00:00]} Rc1 {[%emt 0:00:00]} 59. Kf3 {[%emt 0:00:00]} Ra1 {[%emt 0:00:00]} 60. f5 {[%emt 0:00:57]} Re1 {[%emt 0:00:00]} 61. Kf4 {[%emt 0:00:37]} Rf1+ {[%emt 0:00:00]} 62. Ke4 {[%emt 0:00:15]} Re1+ {[%emt 0:00:00]} 63. Kd3 {[%emt 0:00:21]} Rc1 {[%emt 0:00:00]} 64. Kd4 {[%emt 0:00:21]} Rc2 {[%emt 0:00:00]} 65. Rc5 {[%emt 0:00:10]} Rb2 {[%emt 0:00:52]} 66. Kc4 {[%emt 0:00:28]} Rb1 {[%emt 0:00:21]} 67. Rb5 {[%emt 0:00:13]} Rc1+ {[%emt 0:00:11]} 68. Kb4 {[%emt 0:00:19]} Rb1+ {[%emt 0:00:13] [#]} 69. Kc5 $1 {[%emt 0:00:47]} Rc1+ {[%emt 0:01:39]} 70. Kb6 1-0

[Event "GER-ch Youth U14 2020"]
[Site "Willingen"]
[Date "2020.10.20"]
[Round "1.20"]
[White "Lerchl, Clemens"]
[Black "Huo, Da"]
[Result "1-0"]
[ECO "B59"]
[WhiteElo "1699"]
[BlackElo "1868"]
[Annotator "NA RC"]
[PlyCount "69"]
[EventDate "2020.10.20"]
[EventType "swiss"]
[EventRounds "7"]
[EventCountry "GER"]
[SourceTitle "playchess.com"]
[Source "ChessBase"]
[SourceQuality "1"]
[TimeControl "40/5400+30:1800+30"]

{[%evp 11,68,14,26,19,16,12,18,0,0,-8,39,-16,-31,-45,-7,0,0,-1,32767,32767,39,32767,32767,32767,32767,32767,32767,1,53,57,32767,43,32767,80,32767,32767,112,32767,32767,32767,32767,32767,32767,32767,32767,32767,32767,32767,1715,32767,1845,32767,32767,32767,32767,32767,32767,32767,29996]} 1. e4 {[%emt 0:00:00]} c5 {[%emt 0:00:00]} 2. Nf3 {[%emt 0:00:00]} d6 {[%emt 0:00:00]} 3. d4 {[%emt 0:00:00]} cxd4 {[%emt 0:00:00]} 4. Nxd4 {[%emt 0:00:00]} Nf6 {[%emt 0:00:00]} 5. Nc3 {[%emt 0:00:00]} Nc6 {[%emt 0:00:00]} 6. Be2 {[%emt 0:08:49]} e5 {[%emt 0:00:14]} 7. Nb3 {[%emt 0:02:02]} Be6 {[%emt 0:01:26]} 8. O-O {[%emt 0:01:57]} Be7 {[%emt 0:00:58]} 9. Be3 {[%emt 0:03:50]} O-O {[%emt 0:00:25]} 10. f4 {[%emt 0:04:33]} a5 {[%emt 0:07:37] B59: Classical Sicilian: 6 Be2 e5 7 Nb3.} ({Black should play} 10... exf4 $15 11. Rxf4 d5) 11. Nd2 {[%emt 0:23:21]} (11. f5 $14 Bd7 12. Bb5) 11... exf4 {[%emt 0:09:41]} 12. Bxf4 {[%emt 0:00:33]} Ne5 {[%emt 0:20:29]} 13. Kh1 {[%emt 0:03:53]} Rc8 {[%emt 0:11:53]} 14. Nf3 {[%emt 0:02:03]} Ng6 {[%emt 0:08:32]} 15. Be3 {[%emt 0:06:47]} Ne5 {[%emt 0:15:02]} 16. Bf4 {[%emt 0:01:54]} Nc4 {[%emt 0:09:02] [#]} 17. Nd5 $146 {[%emt 0:19:28]} ({Predecessor:} 17. Bxc4 Bxc4 18. Re1 Ng4 19. Qd4 Rc6 20. h3 Bf6 21. e5 Nxe5 22. Nxe5 dxe5 23. Qxd8 Bxd8 24. Bxe5 Be6 25. Re2 {0-1 (36) Presznyak,I (2305)-Madl,I (2375) Hungary 1992}) 17... Nxd5 {[%emt 0:06:12]} 18. exd5 {[%emt 0:00:38]} Bg4 {[%emt 0:01:09]} 19. b3 {[%emt 0:07:43]} Nb6 {[%emt 0:02:02]} (19... Bxf3 $5 20. Bxf3 Ne5 $14) 20. c4 {[%emt 0:01:02]} Bf6 {[%emt 0:00:36]} 21. Rc1 {[%emt 0:00:55]} Re8 {[%emt 0:01:29]} 22. Bd3 {[%emt 0:01:34]} h6 {[%emt 0:00:36]} 23. h3 {[%emt 0:01:10]} Bh5 {[%emt 0:01:30]} 24. g4 {[%emt 0:01:24]} Bg6 {[%emt 0:00:11]} 25. Bxg6 {[%emt 0:00:16]} fxg6 {[%emt 0:00:04]} 26. Qd3 {[%emt 0:01:02]} g5 {[%emt 0:00:40]} 27. Bg3 {[%emt 0:00:39]} Na8 {[%emt 0:01:02]} 28. Nd4 {[%emt 0:02:55]} Nc7 {[%emt 0:00:58]} 29. Nf5 {[%emt 0:03:16]} Be5 {[%emt 0:00:25]} 30. Bxe5 {[%emt 0:00:40]} Rxe5 {[%emt 0:01:20]} 31. Nxh6+ {[%emt 0:00:43]} gxh6 {[%emt 0:01:21]} 32. Qg6+ {[%emt 0:00:07]} Kh8 {[%emt 0:00:02]} 33. Qxh6+ {[%emt 0:00:03]} Kg8 {[%emt 0:00:05]} 34. Qg6+ {[%emt 0:00:08]} Kh8 {[%emt 0:00:11]} 35. Rf7 {[%emt 0:00:26]} 1-0